[Event "Titled Tuesday Blitz November 14 Early 2023"]
[White "Rustemov, Alexander"]
[Black "Hua, Lefong"]
[WhiteFideId "4119002"]
[BlackFideId "2602253"]
[WhiteElo "2910"]
[BlackElo "2678"]
[Result "1-0"]
[Round "3"]
[TimeControl "180+1"]
[Date "2023.11.14"]
[WhiteClock "0:00:11"]
[BlackClock "0:00:15"]
[Board "52"]

1. d4 {[%clk 0:03:00]}  Nf6 {[%clk 0:03:00]} 2. c4 {[%clk 0:03:01]}  c5 {[%clk 0:02:59]} 3. d5 {[%clk 0:03:00]}  e6 {[%clk 0:02:59]} 4. Nc3 {[%clk 0:03:00]}  exd5 {[%clk 0:03:00]} 5. cxd5 {[%clk 0:03:00]}  d6 {[%clk 0:03:00]} 6. e4 {[%clk 0:03:01]}  g6 {[%clk 0:03:01]} 7. h3 {[%clk 0:03:02]}  Bg7 {[%clk 0:03:01]} 8. Nf3 {[%clk 0:03:02]}  a6 {[%clk 0:02:59]} 9. a4 {[%clk 0:03:01]}  Nbd7 {[%clk 0:02:59]} 10. Bd3 {[%clk 0:03:01]}  Nh5 {[%clk 0:03:00]} 11. Bg5 {[%clk 0:03:01]}  Bf6 {[%clk 0:03:00]} 12. Bh6 {[%clk 0:03:00]}  Ne5 {[%clk 0:02:57]} 13. Be2 {[%clk 0:02:53]}  Nxf3+ {[%clk 0:02:53]} 14. Bxf3 {[%clk 0:02:54]}  Ng7 {[%clk 0:02:54]} 15. O-O {[%clk 0:02:46]}  O-O {[%clk 0:02:53]} 16. Qd2 {[%clk 0:02:43]}  Re8 {[%clk 0:02:48]} 17. Bf4 {[%clk 0:02:36]}  Be5 {[%clk 0:02:45]} 18. Bxe5 {[%clk 0:02:32]}  Rxe5 {[%clk 0:02:46]} 19. Be2 {[%clk 0:02:30]}  Re8 {[%clk 0:02:44]} 20. Rfe1 {[%clk 0:02:14]}  Rb8 {[%clk 0:02:34]} 21. Bf1 {[%clk 0:02:13]}  Bd7 {[%clk 0:02:29]} 22. f4 {[%clk 0:02:09]}  b5 {[%clk 0:02:23]} 23. axb5 {[%clk 0:02:08]}  axb5 {[%clk 0:02:24]} 24. e5 {[%clk 0:02:08]}  b4 {[%clk 0:02:22]} 25. Ne4 {[%clk 0:02:04]}  dxe5 {[%clk 0:02:18]} 26. Nxc5 {[%clk 0:01:47]}  exf4 {[%clk 0:02:02]} 27. Qxf4 {[%clk 0:01:45]}  Qb6 {[%clk 0:01:57]} 28. Qf2 {[%clk 0:01:45]}  Bb5 {[%clk 0:01:48]} 29. Bxb5 {[%clk 0:01:31]}  Qxb5 {[%clk 0:01:49]} 30. d6 {[%clk 0:01:31]}  Rbd8 {[%clk 0:01:34]} 31. d7 {[%clk 0:01:23]}  Rxe1+ {[%clk 0:01:30]} 32. Rxe1 {[%clk 0:01:24]}  Ne6 {[%clk 0:01:25]} 33. Ne4 {[%clk 0:01:05]}  Qf5 {[%clk 0:00:58]} 34. Nf6+ {[%clk 0:00:37]}  Kg7 {[%clk 0:00:54]} 35. Ne8+ {[%clk 0:00:36]}  Kf8 {[%clk 0:00:49]} 36. Qxf5 {[%clk 0:00:32]}  gxf5 {[%clk 0:00:49]} 37. Nf6 {[%clk 0:00:30]}  Kg7 {[%clk 0:00:46]} 38. Ne8+ {[%clk 0:00:24]}  Kg6 {[%clk 0:00:44]} 39. Rd1 {[%clk 0:00:23]}  Nc5 {[%clk 0:00:35]} 40. Rd6+ {[%clk 0:00:20]}  Kg5 {[%clk 0:00:30]} 41. Nf6 {[%clk 0:00:19]}  Ne4 {[%clk 0:00:27]} 42. Nxe4+ {[%clk 0:00:17]}  fxe4 {[%clk 0:00:27]} 43. Kf2 {[%clk 0:00:18]}  Kf5 {[%clk 0:00:27]} 44. Ke3 {[%clk 0:00:18]}  Ke5 {[%clk 0:00:27]} 45. Rd4 {[%clk 0:00:13]}  f5 {[%clk 0:00:26]} 46. g3 {[%clk 0:00:13]}  Ke6 {[%clk 0:00:26]} 47. Rxb4 {[%clk 0:00:13]}  Rxd7 {[%clk 0:00:26]} 48. Rb6+ {[%clk 0:00:13]}  Ke5 {[%clk 0:00:26]} 49. Rb5+ {[%clk 0:00:13]}  Ke6 {[%clk 0:00:26]} 50. Kf4 {[%clk 0:00:13]}  Rd3 {[%clk 0:00:24]} 51. Re5+ {[%clk 0:00:13]}  Kd6 {[%clk 0:00:24]} 52. Rxf5 {[%clk 0:00:13]}  Rf3+ {[%clk 0:00:24]} 53. Kxe4 {[%clk 0:00:13]}  Rxg3 {[%clk 0:00:24]} 54. Rf3 {[%clk 0:00:12]}  Rg2 {[%clk 0:00:23]} 55. b3 {[%clk 0:00:12]}  Ke6 {[%clk 0:00:22]} 56. Kf4 {[%clk 0:00:12]}  Rb2 {[%clk 0:00:21]} 57. Kg5 {[%clk 0:00:11]}  Ke5 {[%clk 0:00:17]} 58. Kh6 {[%clk 0:00:12]}  Ke4 {[%clk 0:00:17]} 59. Rc3 {[%clk 0:00:12]}  Kf5 {[%clk 0:00:16]} 60. Kxh7 {[%clk 0:00:10]}  Kg5 {[%clk 0:00:17]} 61. Kg7 {[%clk 0:00:09]}  Kh4 {[%clk 0:00:16]} 62. Kf6 {[%clk 0:00:09]}  Kh5 {[%clk 0:00:15]} 63. Ke5 {[%clk 0:00:09]}  Kh4 {[%clk 0:00:16]} 64. Kd4 {[%clk 0:00:10]}  Kh5 {[%clk 0:00:16]} 65. Kc5 {[%clk 0:00:10]}  Kh4 {[%clk 0:00:15]} 66. b4 {[%clk 0:00:11]} 1-0


[Site "https://www.chess.com"]

[Event "Titled Tuesday Blitz November 14 Early 2023"]
[White "Chigaev, Maksim"]
[Black "Larino Nieto, David"]
[WhiteFideId "4108116"]
[BlackFideId "2256444"]
[WhiteElo "2902"]
[BlackElo "2637"]
[Result "1-0"]
[Round "3"]
[TimeControl "180+1"]
[Date "2023.11.14"]
[WhiteClock "0:00:18"]
[BlackClock "0:00:00"]
[Board "53"]

1. Nf3 {[%clk 0:03:00]}  e6 {[%clk 0:02:59]} 2. g3 {[%clk 0:03:00]}  b6 {[%clk 0:02:58]} 3. Bg2 {[%clk 0:03:00]}  Bb7 {[%clk 0:02:59]} 4. O-O {[%clk 0:03:00]}  Ne7 {[%clk 0:02:57]} 5. b3 {[%clk 0:02:57]}  d6 {[%clk 0:02:57]} 6. Bb2 {[%clk 0:02:57]}  Nd7 {[%clk 0:02:58]} 7. c4 {[%clk 0:02:57]}  h5 {[%clk 0:02:58]} 8. h4 {[%clk 0:02:57]}  f6 {[%clk 0:02:56]} 9. d4 {[%clk 0:02:56]}  c5 {[%clk 0:02:48]} 10. Nc3 {[%clk 0:02:49]}  a6 {[%clk 0:02:47]} 11. d5 {[%clk 0:02:48]}  e5 {[%clk 0:02:45]} 12. Ne4 {[%clk 0:02:42]}  Nf5 {[%clk 0:02:43]} 13. Qd3 {[%clk 0:02:40]}  Nh6 {[%clk 0:02:36]} 14. Nfd2 {[%clk 0:02:17]}  Bc8 {[%clk 0:02:30]} 15. f4 {[%clk 0:02:14]}  exf4 {[%clk 0:02:24]} 16. gxf4 {[%clk 0:02:12]}  Ng4 {[%clk 0:02:15]} 17. Ng3 {[%clk 0:02:00]}  Kf7 {[%clk 0:02:05]} 18. e4 {[%clk 0:02:00]}  Ra7 {[%clk 0:01:50]} 19. Rae1 {[%clk 0:01:58]}  Kg8 {[%clk 0:01:46]} 20. Nf3 {[%clk 0:01:59]}  Be7 {[%clk 0:01:33]} 21. Nf5 {[%clk 0:01:46]}  Nf8 {[%clk 0:01:31]} 22. e5 {[%clk 0:01:44]}  dxe5 {[%clk 0:01:19]} 23. Nxe7+ {[%clk 0:01:43]}  Rxe7 {[%clk 0:01:18]} 24. fxe5 {[%clk 0:01:43]}  fxe5 {[%clk 0:01:10]} 25. Nxe5 {[%clk 0:01:31]}  Rh6 {[%clk 0:00:51]} 26. Nc6 {[%clk 0:00:55]}  Rxc6 {[%clk 0:00:40]} 27. Rxe7 {[%clk 0:00:54]}  Qxe7 {[%clk 0:00:25]} 28. dxc6 {[%clk 0:00:54]}  Qxh4 {[%clk 0:00:25]} 29. Be5 {[%clk 0:00:27]}  Nxe5 {[%clk 0:00:17]} 30. Qd5+ {[%clk 0:00:27]}  Ne6 {[%clk 0:00:15]} 31. Qxe5 {[%clk 0:00:26]}  Nd4 {[%clk 0:00:14]} 32. Bd5+ {[%clk 0:00:21]}  Kh7 {[%clk 0:00:03]} 33. Qe4+ {[%clk 0:00:16]}  Qxe4 {[%clk 0:00:03]} 34. Bxe4+ {[%clk 0:00:17]}  Kh6 {[%clk 0:00:00]} 35. Rf8 {[%clk 0:00:18]} 1-0


[Site "https://www.chess.com"]

[Event "Titled Tuesday Blitz November 14 Early 2023"]
[White "Wadsworth, Matthew J"]
[Black "AlmasRakhmatullaev"]
[WhiteFideId "415804"]
[WhiteElo "2618"]
[BlackElo "2872"]
[Result "0-1"]
[Round "3"]
[TimeControl "180+1"]
[Date "2023.11.14"]
[WhiteClock "0:00:06"]
[BlackClock "0:00:17"]
[Board "54"]

1. Nf3 {[%clk 0:03:00]}  Nf6 {[%clk 0:02:54]} 2. b3 {[%clk 0:03:00]}  g6 {[%clk 0:02:50]} 3. Bb2 {[%clk 0:03:00]}  Bg7 {[%clk 0:02:51]} 4. e3 {[%clk 0:02:59]}  O-O {[%clk 0:02:49]} 5. c4 {[%clk 0:03:00]}  b6 {[%clk 0:02:45]} 6. g3 {[%clk 0:02:59]}  Bb7 {[%clk 0:02:43]} 7. Bg2 {[%clk 0:02:59]}  d6 {[%clk 0:02:43]} 8. d4 {[%clk 0:02:57]}  Nbd7 {[%clk 0:02:40]} 9. O-O {[%clk 0:02:57]}  Re8 {[%clk 0:02:40]} 10. d5 {[%clk 0:02:54]}  e5 {[%clk 0:02:32]} 11. b4 {[%clk 0:02:30]}  a5 {[%clk 0:02:26]} 12. a3 {[%clk 0:02:30]}  Nh5 {[%clk 0:01:57]} 13. Nc3 {[%clk 0:02:23]}  f5 {[%clk 0:01:55]} 14. Nd2 {[%clk 0:02:19]}  e4 {[%clk 0:01:49]} 15. bxa5 {[%clk 0:02:14]}  Rxa5 {[%clk 0:01:43]} 16. Nb3 {[%clk 0:02:14]}  Ra8 {[%clk 0:01:43]} 17. Nd4 {[%clk 0:02:14]}  Nc5 {[%clk 0:01:43]} 18. a4 {[%clk 0:01:54]}  Nf6 {[%clk 0:01:37]} 19. Ba3 {[%clk 0:01:47]}  Nfd7 {[%clk 0:01:26]} 20. Rb1 {[%clk 0:01:33]}  Qc8 {[%clk 0:01:10]} 21. Ncb5 {[%clk 0:01:08]}  Rxa4 {[%clk 0:01:04]} 22. Bxc5 {[%clk 0:01:07]}  Nxc5 {[%clk 0:01:04]} 23. Ne6 {[%clk 0:01:07]}  Rxe6 {[%clk 0:00:41]} 24. dxe6 {[%clk 0:01:04]}  Rxc4 {[%clk 0:00:42]} 25. Re1 {[%clk 0:00:53]}  Nxe6 {[%clk 0:00:36]} 26. Bf1 {[%clk 0:00:48]}  Rc5 {[%clk 0:00:36]} 27. Nxd6 {[%clk 0:00:37]}  cxd6 {[%clk 0:00:35]} 28. Qxd6 {[%clk 0:00:37]}  Rc6 {[%clk 0:00:32]} 29. Qd5 {[%clk 0:00:22]}  Kh8 {[%clk 0:00:26]} 30. Red1 {[%clk 0:00:20]}  Bf6 {[%clk 0:00:22]} 31. Qd7 {[%clk 0:00:16]}  Qxd7 {[%clk 0:00:16]} 32. Rxd7 {[%clk 0:00:17]}  Bc8 {[%clk 0:00:17]} 33. Ra7 {[%clk 0:00:17]}  Nc5 {[%clk 0:00:06]} 34. Bb5 {[%clk 0:00:16]}  Rd6 {[%clk 0:00:06]} 35. Ra8 {[%clk 0:00:15]}  Rd8 {[%clk 0:00:04]} 36. Bc4 {[%clk 0:00:15]}  Bd7 {[%clk 0:00:02]} 37. Ra7 {[%clk 0:00:07]}  b5 {[%clk 0:00:02]} 38. Bxb5 {[%clk 0:00:06]}  Rb8 {[%clk 0:00:02]} 39. Bd3 {[%clk 0:00:05]}  Rxb1+ {[%clk 0:00:03]} 40. Bxb1 {[%clk 0:00:05]}  Kg7 {[%clk 0:00:03]} 41. Ba2 {[%clk 0:00:03]}  Be7 {[%clk 0:00:03]} 42. h4 {[%clk 0:00:03]}  Kf6 {[%clk 0:00:03]} 43. Bc4 {[%clk 0:00:03]}  Be6 {[%clk 0:00:04]} 44. Bxe6 {[%clk 0:00:01]}  Nxe6 {[%clk 0:00:05]} 45. Ra6 {[%clk 0:00:01]}  h6 {[%clk 0:00:05]} 46. Kg2 {[%clk 0:00:01]}  g5 {[%clk 0:00:06]} 47. hxg5+ {[%clk 0:00:02]}  hxg5 {[%clk 0:00:07]} 48. Kg1 {[%clk 0:00:02]}  Ke5 {[%clk 0:00:07]} 49. Kg2 {[%clk 0:00:03]}  Bc5 {[%clk 0:00:08]} 50. Ra5 {[%clk 0:00:03]}  Kd5 {[%clk 0:00:08]} 51. Ra8 {[%clk 0:00:03]}  g4 {[%clk 0:00:08]} 52. Rg8 {[%clk 0:00:02]}  Ke5 {[%clk 0:00:08]} 53. Ra8 {[%clk 0:00:03]}  Be7 {[%clk 0:00:08]} 54. Ra5+ {[%clk 0:00:04]}  Kf6 {[%clk 0:00:09]} 55. Ra6 {[%clk 0:00:04]}  Kf7 {[%clk 0:00:09]} 56. Ra5 {[%clk 0:00:05]}  Kg6 {[%clk 0:00:07]} 57. Ra6 {[%clk 0:00:05]}  Kf6 {[%clk 0:00:08]} 58. Ra5 {[%clk 0:00:05]}  Bd6 {[%clk 0:00:08]} 59. Ra6 {[%clk 0:00:06]}  Be5 {[%clk 0:00:09]} 60. Ra5 {[%clk 0:00:06]}  Bc3 {[%clk 0:00:10]} 61. Ra6 {[%clk 0:00:07]}  Ke5 {[%clk 0:00:10]} 62. Rc6 {[%clk 0:00:07]}  Bb4 {[%clk 0:00:10]} 63. Rb6 {[%clk 0:00:08]}  Bc5 {[%clk 0:00:11]} 64. Ra6 {[%clk 0:00:08]}  Ng5 {[%clk 0:00:11]} 65. Ra5 {[%clk 0:00:08]}  Kd5 {[%clk 0:00:11]} 66. Ra6 {[%clk 0:00:08]}  Nf3 {[%clk 0:00:12]} 67. Rf6 {[%clk 0:00:09]}  Ke5 {[%clk 0:00:12]} 68. Rc6 {[%clk 0:00:08]}  Bd6 {[%clk 0:00:13]} 69. Ra6 {[%clk 0:00:08]}  Ne1+ {[%clk 0:00:13]} 70. Kf1 {[%clk 0:00:08]}  Nd3 {[%clk 0:00:14]} 71. Kg2 {[%clk 0:00:08]}  Bb4 {[%clk 0:00:13]} 72. Ra8 {[%clk 0:00:05]}  Be1 {[%clk 0:00:13]} 73. Re8+ {[%clk 0:00:05]}  Kf6 {[%clk 0:00:12]} 74. Rf8+ {[%clk 0:00:05]}  Ke6 {[%clk 0:00:13]} 75. Re8+ {[%clk 0:00:06]}  Kf7 {[%clk 0:00:14]} 76. Rd8 {[%clk 0:00:06]}  Bxf2 {[%clk 0:00:13]} 77. Rxd3 {[%clk 0:00:06]}  exd3 {[%clk 0:00:14]} 78. Kxf2 {[%clk 0:00:06]}  Ke6 {[%clk 0:00:14]} 79. Ke1 {[%clk 0:00:07]}  Ke5 {[%clk 0:00:15]} 80. Kd1 {[%clk 0:00:07]}  Ke4 {[%clk 0:00:16]} 81. Kd2 {[%clk 0:00:06]}  Kf3 {[%clk 0:00:17]} 0-1


[Site "https://www.chess.com"]

[Event "Titled Tuesday Blitz November 14 Early 2023"]
[White "Yanchenko, Roman"]
[Black "JuniorJumper"]
[WhiteFideId "4137329"]
[WhiteElo "2844"]
[BlackElo "2605"]
[Result "1-0"]
[Round "3"]
[TimeControl "180+1"]
[Date "2023.11.14"]
[WhiteClock "0:01:37"]
[BlackClock "0:00:27"]
[Board "56"]

1. d4 {[%clk 0:03:00]}  d5 {[%clk 0:02:59]} 2. Nf3 {[%clk 0:03:01]}  e6 {[%clk 0:02:58]} 3. c4 {[%clk 0:03:02]}  c6 {[%clk 0:02:57]} 4. Nc3 {[%clk 0:03:02]}  dxc4 {[%clk 0:02:55]} 5. Bf4 {[%clk 0:03:02]}  Nf6 {[%clk 0:02:52]} 6. a4 {[%clk 0:03:02]}  Bb4 {[%clk 0:02:50]} 7. e3 {[%clk 0:03:02]}  Nd5 {[%clk 0:02:50]} 8. Rc1 {[%clk 0:02:43]}  Nxf4 {[%clk 0:02:50]} 9. exf4 {[%clk 0:02:44]}  b5 {[%clk 0:02:38]} 10. g3 {[%clk 0:02:43]}  Bb7 {[%clk 0:02:29]} 11. Bg2 {[%clk 0:02:42]}  a6 {[%clk 0:02:30]} 12. O-O {[%clk 0:02:43]}  O-O {[%clk 0:02:30]} 13. Ne5 {[%clk 0:02:41]}  f6 {[%clk 0:02:27]} 14. Ng4 {[%clk 0:02:35]}  Qb6 {[%clk 0:02:05]} 15. Re1 {[%clk 0:02:33]}  c5 {[%clk 0:01:42]} 16. dxc5 {[%clk 0:02:24]}  Bxc5 {[%clk 0:01:38]} 17. Bxb7 {[%clk 0:02:16]}  Qxb7 {[%clk 0:01:38]} 18. Rxe6 {[%clk 0:02:14]}  Nd7 {[%clk 0:00:53]} 19. Qe2 {[%clk 0:01:59]}  Rad8 {[%clk 0:00:49]} 20. Rd1 {[%clk 0:01:48]}  Kh8 {[%clk 0:00:46]} 21. axb5 {[%clk 0:01:39]}  axb5 {[%clk 0:00:45]} 22. h4 {[%clk 0:01:38]}  Nb8 {[%clk 0:00:35]} 23. Rxd8 {[%clk 0:01:36]}  Rxd8 {[%clk 0:00:30]} 24. Re8+ {[%clk 0:01:36]}  Bf8 {[%clk 0:00:27]} 25. Rxd8 {[%clk 0:01:37]} 1-0


[Site "https://www.chess.com"]

[Event "Titled Tuesday Blitz November 14 Early 2023"]
[White "Vlassov, Nikolai"]
[Black "Narayanan, Srinath"]
[WhiteFideId "4103360"]
[BlackFideId "5018420"]
[WhiteElo "2584"]
[BlackElo "2794"]
[Result "1/2-1/2"]
[Round "3"]
[TimeControl "180+1"]
[Date "2023.11.14"]
[WhiteClock "0:00:59"]
[BlackClock "0:01:20"]
[Board "59"]

1. e4 {[%clk 0:03:00]}  c5 {[%clk 0:02:59]} 2. c3 {[%clk 0:03:00]}  Nf6 {[%clk 0:02:59]} 3. e5 {[%clk 0:03:01]}  Nd5 {[%clk 0:02:59]} 4. d4 {[%clk 0:03:01]}  cxd4 {[%clk 0:03:00]} 5. cxd4 {[%clk 0:03:02]}  Nc6 {[%clk 0:02:58]} 6. Nc3 {[%clk 0:03:02]}  Nxc3 {[%clk 0:02:58]} 7. bxc3 {[%clk 0:03:03]}  d6 {[%clk 0:02:58]} 8. f4 {[%clk 0:03:03]}  dxe5 {[%clk 0:02:49]} 9. fxe5 {[%clk 0:03:02]}  g6 {[%clk 0:02:49]} 10. Nf3 {[%clk 0:03:02]}  Bg7 {[%clk 0:02:49]} 11. Bd3 {[%clk 0:03:02]}  O-O {[%clk 0:02:49]} 12. O-O {[%clk 0:03:02]}  f6 {[%clk 0:02:49]} 13. Bf4 {[%clk 0:02:22]}  Kh8 {[%clk 0:02:46]} 14. Qe2 {[%clk 0:02:19]}  Bg4 {[%clk 0:02:41]} 15. Qe3 {[%clk 0:02:06]}  Bxf3 {[%clk 0:02:32]} 16. Rxf3 {[%clk 0:02:05]}  fxe5 {[%clk 0:02:32]} 17. dxe5 {[%clk 0:02:01]}  Qb6 {[%clk 0:02:31]} 18. Qxb6 {[%clk 0:01:48]}  axb6 {[%clk 0:02:32]} 19. Rb1 {[%clk 0:01:47]}  Bxe5 {[%clk 0:02:06]} 20. Bxe5+ {[%clk 0:01:39]}  Nxe5 {[%clk 0:02:06]} 21. Rxf8+ {[%clk 0:01:39]}  Rxf8 {[%clk 0:02:07]} 22. Be4 {[%clk 0:01:39]}  Rf6 {[%clk 0:01:59]} 23. Bxb7 {[%clk 0:01:38]}  Nc4 {[%clk 0:01:52]} 24. Re1 {[%clk 0:01:28]}  e6 {[%clk 0:01:41]} 25. Bc8 {[%clk 0:01:19]}  e5 {[%clk 0:01:39]} 26. Ba6 {[%clk 0:01:19]}  Rc6 {[%clk 0:01:20]} 27. Bxc4 {[%clk 0:01:15]}  Rxc4 {[%clk 0:01:21]} 28. Rxe5 {[%clk 0:01:15]}  Rxc3 {[%clk 0:01:22]} 29. Rb5 {[%clk 0:01:15]}  Rc1+ {[%clk 0:01:19]} 30. Kf2 {[%clk 0:01:15]}  Rc2+ {[%clk 0:01:20]} 31. Kf3 {[%clk 0:01:15]}  Rxa2 {[%clk 0:01:21]} 32. Rxb6 {[%clk 0:01:15]}  Kg7 {[%clk 0:01:21]} 33. h4 {[%clk 0:01:15]}  Ra3+ {[%clk 0:01:19]} 34. Kf4 {[%clk 0:01:11]}  Ra4+ {[%clk 0:01:18]} 35. Kg3 {[%clk 0:01:10]}  h5 {[%clk 0:01:17]} 36. Rc6 {[%clk 0:01:05]}  Rg4+ {[%clk 0:01:15]} 37. Kh3 {[%clk 0:01:05]}  Kf7 {[%clk 0:01:16]} 38. g3 {[%clk 0:01:05]}  Ke7 {[%clk 0:01:16]} 39. Kg2 {[%clk 0:01:05]}  Kd7 {[%clk 0:01:16]} 40. Ra6 {[%clk 0:01:04]}  Kc7 {[%clk 0:01:17]} 41. Kf3 {[%clk 0:01:04]}  Kd7 {[%clk 0:01:17]} 42. Rf6 {[%clk 0:00:58]}  Ke7 {[%clk 0:01:17]} 43. Rf4 {[%clk 0:00:58]}  Rxf4+ {[%clk 0:01:17]} 44. Kxf4 {[%clk 0:00:58]}  Kf6 {[%clk 0:01:17]} 45. g4 {[%clk 0:00:58]}  hxg4 {[%clk 0:01:18]} 46. Kxg4 {[%clk 0:00:58]}  Kf7 {[%clk 0:01:19]} 47. Kg5 {[%clk 0:00:58]}  Kg7 {[%clk 0:01:20]} 48. h5 {[%clk 0:00:58]}  gxh5 {[%clk 0:01:20]} 49. Kxh5 {[%clk 0:00:59]} 1/2-1/2


[Site "https://www.chess.com"]

[Event "Titled Tuesday Blitz November 14 Early 2023"]
[White "Silva Lucena, Cristian"]
[Black "Budisavljevic, Luka"]
[WhiteFideId "2232588"]
[BlackFideId "960047"]
[WhiteElo "2548"]
[BlackElo "2765"]
[Result "0-1"]
[Round "3"]
[TimeControl "180+1"]
[Date "2023.11.14"]
[WhiteClock "0:01:57"]
[BlackClock "0:01:41"]
[Board "61"]

1. e4 {[%clk 0:03:00]}  c5 {[%clk 0:03:00]} 2. Nf3 {[%clk 0:02:58]}  e6 {[%clk 0:03:00]} 3. d4 {[%clk 0:02:58]}  cxd4 {[%clk 0:03:00]} 4. Nxd4 {[%clk 0:02:59]}  a6 {[%clk 0:03:00]} 5. g3 {[%clk 0:02:59]}  d5 {[%clk 0:02:58]} 6. Nb3 {[%clk 0:02:58]}  dxe4 {[%clk 0:02:58]} 7. Qxd8+ {[%clk 0:02:55]}  Kxd8 {[%clk 0:02:59]} 8. Nc3 {[%clk 0:02:55]}  f5 {[%clk 0:02:58]} 9. Bg5+ {[%clk 0:02:53]}  Be7 {[%clk 0:02:53]} 10. O-O-O+ {[%clk 0:02:53]}  Bd7 {[%clk 0:02:53]} 11. Bf4 {[%clk 0:02:48]}  Nc6 {[%clk 0:02:51]} 12. Bc4 {[%clk 0:02:48]}  Ke8 {[%clk 0:02:49]} 13. h4 {[%clk 0:02:40]}  Nf6 {[%clk 0:02:38]} 14. Na4 {[%clk 0:02:39]}  b5 {[%clk 0:02:35]} 15. Nb6 {[%clk 0:02:33]}  bxc4 {[%clk 0:02:34]} 16. Nd2 {[%clk 0:02:21]}  Ra7 {[%clk 0:02:30]} 17. Ndxc4 {[%clk 0:02:21]}  Rb7 {[%clk 0:02:06]} 18. h5 {[%clk 0:02:19]}  e5 {[%clk 0:02:01]} 19. Bg5 {[%clk 0:02:19]}  h6 {[%clk 0:01:56]} 20. Bxf6 {[%clk 0:02:18]}  gxf6 {[%clk 0:01:57]} 21. Rd6 {[%clk 0:02:02]}  Rxb6 {[%clk 0:01:50]} 22. Rxd7 {[%clk 0:02:02]}  Kxd7 {[%clk 0:01:48]} 23. Nxb6+ {[%clk 0:02:02]}  Ke6 {[%clk 0:01:49]} 24. c3 {[%clk 0:02:01]}  f4 {[%clk 0:01:46]} 25. Nc4 {[%clk 0:01:57]}  f5 {[%clk 0:01:41]} 0-1


[Site "https://www.chess.com"]

[Event "Titled Tuesday Blitz November 14 Early 2023"]
[White "Begmuratov, Alisher"]
[Black "Bommini Mounika Akshaya"]
[WhiteFideId "14203367"]
[BlackFideId "25019872"]
[WhiteElo "2709"]
[BlackElo "2273"]
[Result "1-0"]
[Round "3"]
[TimeControl "180+1"]
[Date "2023.11.14"]
[WhiteClock "0:01:29"]
[BlackClock "0:01:06"]
[Board "64"]

1. c4 {[%clk 0:03:00]}  e5 {[%clk 0:02:58]} 2. g3 {[%clk 0:03:00]}  c6 {[%clk 0:02:57]} 3. Bg2 {[%clk 0:03:00]}  Nf6 {[%clk 0:02:56]} 4. Nc3 {[%clk 0:02:58]}  d5 {[%clk 0:02:56]} 5. cxd5 {[%clk 0:02:59]}  cxd5 {[%clk 0:02:57]} 6. d4 {[%clk 0:02:58]}  e4 {[%clk 0:02:56]} 7. Bg5 {[%clk 0:02:57]}  Nc6 {[%clk 0:02:52]} 8. Bxf6 {[%clk 0:02:56]}  gxf6 {[%clk 0:02:52]} 9. e3 {[%clk 0:02:55]}  h5 {[%clk 0:02:50]} 10. h4 {[%clk 0:02:54]}  Bg4 {[%clk 0:02:48]} 11. Nge2 {[%clk 0:02:50]}  Qd7 {[%clk 0:02:37]} 12. O-O {[%clk 0:02:48]}  Rg8 {[%clk 0:02:33]} 13. Qb3 {[%clk 0:02:47]}  Rd8 {[%clk 0:02:08]} 14. Nf4 {[%clk 0:02:46]}  Ne7 {[%clk 0:01:56]} 15. Rac1 {[%clk 0:02:38]}  Bh6 {[%clk 0:01:55]} 16. Nfxd5 {[%clk 0:01:59]}  Nxd5 {[%clk 0:01:52]} 17. Nxe4 {[%clk 0:01:59]}  Rg6 {[%clk 0:01:41]} 18. Nc5 {[%clk 0:01:53]}  Qf5 {[%clk 0:01:06]} 19. e4 {[%clk 0:01:29]} 1-0


[Site "https://www.chess.com"]

[Event "Titled Tuesday Blitz November 14 Early 2023"]
[White "Yaksin, Oleg"]
[Black "Tabatabaei, M. Amin"]
[WhiteFideId "24105880"]
[BlackFideId "12521213"]
[WhiteElo "2533"]
[BlackElo "3079"]
[Result "0-1"]
[Round "3"]
[TimeControl "180+1"]
[Date "2023.11.14"]
[WhiteClock "0:00:09"]
[BlackClock "0:01:09"]
[Board "67"]

1. d4 {[%clk 0:03:00]}  d5 {[%clk 0:02:55]} 2. c4 {[%clk 0:03:00]}  c6 {[%clk 0:02:56]} 3. Nf3 {[%clk 0:03:01]}  Nf6 {[%clk 0:02:56]} 4. Qb3 {[%clk 0:03:00]}  dxc4 {[%clk 0:02:55]} 5. Qxc4 {[%clk 0:03:00]}  Bf5 {[%clk 0:02:56]} 6. g3 {[%clk 0:02:58]}  h6 {[%clk 0:02:56]} 7. Bg2 {[%clk 0:02:57]}  e6 {[%clk 0:02:57]} 8. O-O {[%clk 0:02:57]}  Nbd7 {[%clk 0:02:56]} 9. Nc3 {[%clk 0:02:57]}  Be7 {[%clk 0:02:56]} 10. Re1 {[%clk 0:02:56]}  Ne4 {[%clk 0:02:53]} 11. Nh4 {[%clk 0:02:24]}  Nd6 {[%clk 0:02:39]} 12. Qb3 {[%clk 0:02:22]}  Bxh4 {[%clk 0:02:39]} 13. gxh4 {[%clk 0:02:22]}  Qxh4 {[%clk 0:02:40]} 14. e4 {[%clk 0:02:22]}  Bh3 {[%clk 0:02:41]} 15. Qd1 {[%clk 0:02:06]}  Bxg2 {[%clk 0:02:16]} 16. Kxg2 {[%clk 0:02:07]}  O-O {[%clk 0:02:16]} 17. Qf3 {[%clk 0:02:01]}  f5 {[%clk 0:02:14]} 18. e5 {[%clk 0:01:55]}  Ne4 {[%clk 0:02:14]} 19. Nxe4 {[%clk 0:01:51]}  fxe4 {[%clk 0:02:15]} 20. Rxe4 {[%clk 0:01:51]}  Qxh2+ {[%clk 0:02:06]} 21. Kxh2 {[%clk 0:01:50]}  Rxf3 {[%clk 0:02:07]} 22. Be3 {[%clk 0:01:46]}  Kh7 {[%clk 0:02:04]} 23. Kg2 {[%clk 0:01:42]}  Raf8 {[%clk 0:02:00]} 24. Rh1 {[%clk 0:01:01]}  Nb6 {[%clk 0:01:47]} 25. Reh4 {[%clk 0:01:01]}  Nd5 {[%clk 0:01:48]} 26. Bxh6 {[%clk 0:00:59]}  Rxf2+ {[%clk 0:01:48]} 27. Kg3 {[%clk 0:00:59]}  R8f3+ {[%clk 0:01:41]} 28. Kg4 {[%clk 0:00:57]}  Kg6 {[%clk 0:01:23]} 29. Bc1 {[%clk 0:00:31]}  Ne7 {[%clk 0:01:13]} 30. R4h3 {[%clk 0:00:27]}  Rxh3 {[%clk 0:01:12]} 31. Rxh3 {[%clk 0:00:27]}  Rc2 {[%clk 0:01:11]} 32. Rc3 {[%clk 0:00:27]}  Rxc3 {[%clk 0:01:11]} 33. bxc3 {[%clk 0:00:28]}  b5 {[%clk 0:01:11]} 34. Bd2 {[%clk 0:00:26]}  Nd5 {[%clk 0:01:12]} 35. Be1 {[%clk 0:00:26]}  a5 {[%clk 0:01:12]} 36. Bd2 {[%clk 0:00:25]}  a4 {[%clk 0:01:13]} 37. a3 {[%clk 0:00:22]}  Nb6 {[%clk 0:01:12]} 38. Bc1 {[%clk 0:00:22]}  Nc4 {[%clk 0:01:13]} 39. Kf4 {[%clk 0:00:20]}  Kh5 {[%clk 0:01:14]} 40. Kg3 {[%clk 0:00:19]}  g5 {[%clk 0:01:14]} 41. Kh3 {[%clk 0:00:20]}  g4+ {[%clk 0:01:11]} 42. Kg3 {[%clk 0:00:20]}  Nb6 {[%clk 0:01:12]} 43. Bd2 {[%clk 0:00:19]}  Nd5 {[%clk 0:01:12]} 44. Be1 {[%clk 0:00:18]}  Ne3 {[%clk 0:01:12]} 45. Bf2 {[%clk 0:00:12]}  Nc4 {[%clk 0:01:09]} 46. Be1 {[%clk 0:00:09]}  Nxa3 {[%clk 0:01:09]} 0-1


[Site "https://www.chess.com"]